{"text_format":"3","workbook":"xlsx","n_sheets":1,"sheets":["Ostoslista"],"not_rendered":{"images":1,"defined_names":3},"read":"whole","date_system":"1900"}

{"sheet":"Ostoslista","index":0,"n_rows":31,"n_cols":8,"rows_kept":31}
[null,"Ostoslista"]
[null,"PÄIVÄMÄÄRÄ"]
[null,"Oletko valmis?","Tuote","Luokka","Määrä","Hinta","Laajennettu hinta","Tuotemerkki/kommentti"]
[null,null,"Appelsiineja","Hedelmät ja vihannekset",null,null,{"$f":"IFERROR(SUM(Ostoslista[[#This Row],[Määrä]]*Ostoslista[[#This Row],[Hinta]]), \"\")","v":{"v":0,"d":"0.00 €"}}]
[null,null,"Omenoita","Hedelmät ja vihannekset",null,null,{"$f":"IFERROR(SUM(Ostoslista[[#This Row],[Määrä]]*Ostoslista[[#This Row],[Hinta]]), \"\")","v":{"v":0,"d":"0.00 €"}}]
[null,null,"Banaaneja","Hedelmät ja vihannekset",null,null,{"$f":"IFERROR(SUM(Ostoslista[[#This Row],[Määrä]]*Ostoslista[[#This Row],[Hinta]]), \"\")","v":{"v":0,"d":"0.00 €"}}]
[null,null,"Salaattia","Hedelmät ja vihannekset",null,null,{"$f":"IFERROR(SUM(Ostoslista[[#This Row],[Määrä]]*Ostoslista[[#This Row],[Hinta]]), \"\")","v":{"v":0,"d":"0.00 €"}}]
[null,null,"Tomaatteja","Hedelmät ja vihannekset",null,null,{"$f":"IFERROR(SUM(Ostoslista[[#This Row],[Määrä]]*Ostoslista[[#This Row],[Hinta]]), \"\")","v":{"v":0,"d":"0.00 €"}},"  "]
[null,null,"Maitoa ","Maitotuotteet",null,null,{"$f":"IFERROR(SUM(Ostoslista[[#This Row],[Määrä]]*Ostoslista[[#This Row],[Hinta]]), \"\")","v":{"v":0,"d":"0.00 €"}}]
[null,null,"Juustoa","Maitotuotteet",null,null,{"$f":"IFERROR(SUM(Ostoslista[[#This Row],[Määrä]]*Ostoslista[[#This Row],[Hinta]]), \"\")","v":{"v":0,"d":"0.00 €"}}]
[null,null,"Munia","Maitotuotteet",null,null,{"$f":"IFERROR(SUM(Ostoslista[[#This Row],[Määrä]]*Ostoslista[[#This Row],[Hinta]]), \"\")","v":{"v":0,"d":"0.00 €"}}]
[null,null,"Raejuustoa","Maitotuotteet",null,null,{"$f":"IFERROR(SUM(Ostoslista[[#This Row],[Määrä]]*Ostoslista[[#This Row],[Hinta]]), \"\")","v":{"v":0,"d":"0.00 €"}}]
[null,null,"Jauhelihaa","Liha",null,null,{"$f":"IFERROR(SUM(Ostoslista[[#This Row],[Määrä]]*Ostoslista[[#This Row],[Hinta]]), \"\")","v":{"v":0,"d":"0.00 €"}}]
[null,null,"Siipikarjanlihaa","Liha",null,null,{"$f":"IFERROR(SUM(Ostoslista[[#This Row],[Määrä]]*Ostoslista[[#This Row],[Hinta]]), \"\")","v":{"v":0,"d":"0.00 €"}}]
[null,null,"Pekonia","Liha",null,null,{"$f":"IFERROR(SUM(Ostoslista[[#This Row],[Määrä]]*Ostoslista[[#This Row],[Hinta]]), \"\")","v":{"v":0,"d":"0.00 €"}}]
[null,null,"Mehua","Juomat",null,null,{"$f":"IFERROR(SUM(Ostoslista[[#This Row],[Määrä]]*Ostoslista[[#This Row],[Hinta]]), \"\")","v":{"v":0,"d":"0.00 €"}}]
[null,null,"Kahvia","Juomat",null,null,{"$f":"IFERROR(SUM(Ostoslista[[#This Row],[Määrä]]*Ostoslista[[#This Row],[Hinta]]), \"\")","v":{"v":0,"d":"0.00 €"}}]
[null,null,"Teetä","Juomat",null,null,{"$f":"IFERROR(SUM(Ostoslista[[#This Row],[Määrä]]*Ostoslista[[#This Row],[Hinta]]), \"\")","v":{"v":0,"d":"0.00 €"}}]
[null,null,"Vettä","Juomat",null,null,{"$f":"IFERROR(SUM(Ostoslista[[#This Row],[Määrä]]*Ostoslista[[#This Row],[Hinta]]), \"\")","v":{"v":0,"d":"0.00 €"}}]
[null,null,"Nuudeleita","Pasta",null,null,{"$f":"IFERROR(SUM(Ostoslista[[#This Row],[Määrä]]*Ostoslista[[#This Row],[Hinta]]), \"\")","v":{"v":0,"d":"0.00 €"}}]
[null,null,"Riisiä","Pasta",null,null,{"$f":"IFERROR(SUM(Ostoslista[[#This Row],[Määrä]]*Ostoslista[[#This Row],[Hinta]]), \"\")","v":{"v":0,"d":"0.00 €"}}]
[null,null,"Säilykkeitä","Keitot",null,null,{"$f":"IFERROR(SUM(Ostoslista[[#This Row],[Määrä]]*Ostoslista[[#This Row],[Hinta]]), \"\")","v":{"v":0,"d":"0.00 €"}}]
[null,null,"Kuivamausteita","Keitot",null,null,{"$f":"IFERROR(SUM(Ostoslista[[#This Row],[Määrä]]*Ostoslista[[#This Row],[Hinta]]), \"\")","v":{"v":0,"d":"0.00 €"}}]
[null,null,"Leipää","Leipomotuotteet",null,null,{"$f":"IFERROR(SUM(Ostoslista[[#This Row],[Määrä]]*Ostoslista[[#This Row],[Hinta]]), \"\")","v":{"v":0,"d":"0.00 €"}}]
[null,null,"Perunalastuja","Välipalat",null,null,{"$f":"IFERROR(SUM(Ostoslista[[#This Row],[Määrä]]*Ostoslista[[#This Row],[Hinta]]), \"\")","v":{"v":0,"d":"0.00 €"}}]
[null,null,"Rinkeleitä","Välipalat",null,null,{"$f":"IFERROR(SUM(Ostoslista[[#This Row],[Määrä]]*Ostoslista[[#This Row],[Hinta]]), \"\")","v":{"v":0,"d":"0.00 €"}}]
[null,null,"Jäätelöä","Välipalat",null,null,{"$f":"IFERROR(SUM(Ostoslista[[#This Row],[Määrä]]*Ostoslista[[#This Row],[Hinta]]), \"\")","v":{"v":0,"d":"0.00 €"}}]
[null,null,"Pikkuleipiä","Välipalat",null,null,{"$f":"IFERROR(SUM(Ostoslista[[#This Row],[Määrä]]*Ostoslista[[#This Row],[Hinta]]), \"\")","v":{"v":0,"d":"0.00 €"}}]
[null,null,"Paperilautasia","Tarvikkeet",null,null,{"$f":"IFERROR(SUM(Ostoslista[[#This Row],[Määrä]]*Ostoslista[[#This Row],[Hinta]]), \"\")","v":{"v":0,"d":"0.00 €"}}]
[null,null,"Lautasliinoja","Tarvikkeet",null,null,{"$f":"IFERROR(SUM(Ostoslista[[#This Row],[Määrä]]*Ostoslista[[#This Row],[Hinta]]), \"\")","v":{"v":0,"d":"0.00 €"}}]
[{"$nulls":6},{"$f":"SUBTOTAL(109,Ostoslista[Laajennettu hinta])","v":{"v":0,"d":"0.00 €"}}]